bitfinex/quotes_ETHUSD_20210701
["timestamp","ask_amount","ask_price","bid_price","bid_amount"]
[1625125879584,5.01,2147.2,2147.0,4.2943814]
[1625125879986,6.5183,2147.3,2147.0,4.2943814]
[1625125880085,1.5083,2147.3,2147.0,4.2943814]
[1625125880787,0.14,2147.9,2147.0,4.2943814]
[1625125881442,2.54982553,2147.9,2147.0,4.2943814]
[1625125881538,7.55982553,2147.9,2147.0,4.2943814]
[1625125881638,5.98337705,2147.8,2147.0,4.2943814]
[1625125881741,5.01,2147.6,2147.0,4.2943814]
[1625125881939,5.67940291,2147.5,2147.0,4.2943814]
[1625125882140,5.01,2147.3,2147.0,4.2943814]
[1625125882540,5.0332,2147.3,2147.0,4.2943814]
[1625125882741,5.01,2147.1,2147.0,4.2943814]
[1625125882864,0.14,2147.5,2147.0,4.2943814]
[1625125882946,0.19732243,2148.1,2147.0,9.0149814]
[1625125883045,10.3938,2148.3,2147.1,0.14]
[1625125883145,2.0,2148.2,2147.1,0.14]
[1625125883243,10.3938,2148.3,2147.0,10.2351814]
[1625125883342,5.69048954,2148.2,2147.0,10.2351814]
[1625125883749,6.21368552,2148.6,2147.4,9.30992]
[1625125883846,5.83933018,2148.6,2147.4,9.30992]
[1625125883945,32.6034,2148.9,2147.4,9.30992]
[1625125884047,5.91984663,2148.8,2147.4,9.30992]
[1625125884548,5.91984663,2148.8,2147.4,12.8007945]
[1625125884749,5.91984663,2148.8,2147.8,9.30876]
[1625125885699,12.0,2148.9,2147.8,13.41306]
[1625125885799,17.56953801,2148.9,2147.8,13.41306]
[1625125885894,5.61612582,2148.8,2147.9,0.08]
[1625125886094,5.61612582,2148.8,2147.8,13.41306]
[1625125886496,5.61612582,2148.8,2148.0,3.49022]
[1625125886658,5.61612582,2148.8,2147.8,13.41306]
[1625125886745,12.0,2148.9,2147.8,13.41306]
[1625125886851,12.0,2148.9,2147.8,19.57048414]
[1625125886945,12.0,2148.9,2147.8,19.7570775]
[1625125887048,12.0,2148.9,2147.9,3.53035]
[1625125887247,12.0,2148.9,2147.9,3.49035]
[1625125887578,12.0,2148.9,2147.9,6.98052]
[1625125887980,12.0,2148.9,2148.0,6.3213132]
[1625125888085,12.0,2148.9,2148.4,6.98034]
[1625125888187,12.0,2148.9,2148.4,11.21284]
[1625125888285,12.0,2148.9,2148.5,6.25999555]
[1625125888378,12.0,2148.9,2148.4,11.21284]
[1625125888477,6.547593,2150.1,2148.5,28.1]
[1625125888582,31.62172874,2150.2,2148.6,5.01]
[1625125888583,21.43432874,2150.2,2148.6,5.01]
[1625125888682,10.81552874,2150.2,2149.0,6.97648]
[1625125888777,10.81552874,2150.2,2149.1,6.55069658]
[1625125888885,10.81552874,2150.2,2149.1,0.04]
[1625125888992,0.00882874,2150.2,2149.0,14.79768]
[1625125889184,0.00882874,2150.2,2149.1,6.33401681]
[1625125889284,0.00882874,2150.2,2149.0,14.79768]
[1625125889389,10.0014,2150.5,2149.1,6.26092884]
[1625125889488,10.0014,2150.5,2149.6,6.97649]
[1625125889592,0.14,2150.8,2149.6,10.45039]
[1625125889804,0.14,2150.8,2149.8,3.2]
[1625125890689,0.14,2150.8,2149.8,10.17558]
[1625125892248,0.14,2150.8,2149.8,16.64986619]
[1625125892345,2.53376202,2151.2,2149.8,12.98718619]
[1625125892447,2.53376202,2151.2,2149.9,0.16]
[1625125892746,2.53376202,2151.2,2149.9,6.48330884]
[1625125892849,10.4561,2151.3,2149.9,6.48330884]
[1625125893047,10.4561,2151.3,2150.4,6.97399]
[1625125893147,0.14,2151.3,2150.4,6.97399]
[1625125893651,6.28527815,2151.9,2150.5,0.1]
[1625125893852,6.28527815,2151.9,2150.4,1.3494]
[1625125893949,6.28527815,2151.9,2150.4,1.35949698]
[1625125894108,20.8649,2152.2,2151.1,6.97107]
[1625125894210,5.91150132,2151.9,2151.1,6.97107]
[1625125894308,7.15352079,2152.1,2150.7,9.2959]
[1625125894407,2.40034769,2151.9,2150.7,9.2959]
[1625125894507,7.01719758,2151.8,2150.7,9.2959]
[1625125894615,7.22964459,2151.8,2150.3,3.48605]
[1625125894704,11.11494459,2151.8,2150.3,3.48605]
[1625125894804,11.11494459,2151.8,2150.4,0.08]
[1625125894904,11.11494459,2151.8,2150.3,3.48605]
[1625125895007,11.11494459,2151.8,2150.0,8.1334526]
[1625125895110,2.53541496,2151.7,2150.0,8.1334526]
[1625125895304,6.72815938,2151.6,2150.0,8.1334526]
[1625125895408,6.72815938,2151.6,2150.3,6.97348]
[1625125895813,11.66392203,2151.6,2150.2,0.16]
[1625125895906,15.98802203,2151.6,2150.1,9.24865]
[1625125896212,25.42072203,2151.6,2150.1,9.24865]
[1625125896349,25.42072203,2151.6,2149.7,17.17934]
[1625125896448,0.05399838,2151.5,2149.7,17.17934]
[1625125896548,0.05399838,2151.5,2149.7,12.5312]
[1625125896652,5.01,2151.4,2149.8,6.97496]
[1625125896754,15.06774053,2151.3,2149.5,2.298]
[1625125896849,36.16708787,2151.3,2149.1,10.5086]
[1625125896955,8.47,2151.1,2149.1,10.5086]
[1625125897051,0.17977608,2151.0,2149.0,2.34]
[1625125897153,0.30984435,2150.8,2148.6,22.9233]
[1625125897298,24.27482681,2150.7,2148.6,22.9233]
[1625125897398,15.0,2150.4,2148.6,2.436]
[1625125897500,3.46,2150.2,2148.5,2.274]
[1625125897599,7.81885215,2150.1,2148.5,2.274]
[1625125897699,5.21741822,2150.0,2148.5,2.274]
[1625125897801,6.97951,2149.8,2148.2,6.97972]
[1625125897902,5.01,2149.6,2148.2,6.97972]
[1625125898002,6.61553292,2149.5,2148.1,11.62836]
[1625125898099,11.76553292,2149.5,2147.9,20.0809]
[1625125898198,0.1148688,2149.4,2147.8,26.7087443]
[1625125898297,5.01,2149.3,2147.8,26.7087443]
[1625125898403,7.09747354,2149.2,2147.8,16.2816443]
[1625125898645,7.09747354,2149.2,2147.8,11.63005]
[1625125898649,7.09747354,2149.2,2147.7,1.43451535]
[1625125898650,5.01,2149.0,2147.7,1.43451535]
[1625125898842,6.816738,2148.9,2147.2,10.3405162]
[1625125898997,5.01,2148.7,2147.2,10.3405162]
[1625125899098,8.799,2148.7,2147.2,10.3405162]
[1625125899195,6.61901452,2148.6,2147.2,12.6205162]
[1625125899297,6.61901452,2148.6,2147.6,6.98136]
[1625125899398,6.62663201,2148.6,2147.6,6.98136]
[1625125899493,6.46044987,2148.6,2147.6,6.98136]
[1625125899598,6.51216483,2148.6,2147.6,6.98136]
[1625125899695,0.14,2148.6,2147.7,0.06]
[1625125899995,0.08554754,2148.9,2147.8,0.2]
[1625125900199,0.08554754,2148.9,2147.9,3.48921]
[1625125900295,0.08846164,2149.2,2147.9,18.48921]
[1625125900400,0.08846164,2149.2,2148.5,6.97799]
[1625125900494,0.01093931,2149.4,2148.5,10.01589]
[1625125900853,10.5724,2149.7,2148.5,10.01589]
[1625125900940,0.14,2149.7,2148.5,10.01589]
[1625125901747,0.14,2149.7,2148.5,20.64997125]
[1625125901941,0.14,2149.7,2148.5,22.01589]
[1625125902046,6.46118492,2150.2,2148.7,5.01]
[1625125902147,6.60118492,2150.2,2148.7,5.01]
[1625125903209,6.60118492,2150.2,2149.3,6.97602]
[1625125903310,5.01,2150.0,2149.3,10.54722]
[1625125903408,5.01,2150.2,2149.3,10.54722]
[1625125903510,5.71359202,2150.4,2149.3,10.54722]
[1625125904408,0.14,2150.5,2149.3,10.54722]
[1625125904612,0.14,2150.5,2149.4,0.14]
[1625125905113,0.14,2150.5,2149.3,3.5712]
[1625125905217,1.05923235,2150.5,2149.3,3.5712]
[1625125905358,0.14,2150.5,2148.9,11.58791]
[1625125905454,0.14,2150.5,2149.3,9.30031]
[1625125905655,0.12901578,2150.5,2149.3,9.30031]
[1625125906256,5.01,2150.4,2149.3,9.30031]
[1625125906354,5.01,2150.4,2148.9,9.30191]
[1625125906454,6.37208981,2150.3,2148.9,9.30191]
[1625125906554,5.01,2150.1,2148.9,9.30191]
[1625125906653,5.01,2150.1,2149.0,0.08]
[1625125906755,5.74771414,2150.0,2149.0,0.08]
[1625125906959,5.13901578,2150.5,2149.0,0.08]
[1625125907055,5.61966466,2150.0,2149.1,0.1]
[1625125907154,5.13901578,2150.5,2149.1,0.1]
[1625125907155,11.23434795,2150.4,2149.1,0.1]
[1625125907456,5.01,2150.4,2149.1,0.1]
[1625125907602,10.3121,2150.7,2149.3,9.30008]
[1625125907801,5.65037509,2150.6,2149.3,9.30008]
[1625125909058,5.01,2150.4,2149.3,9.30008]
[1625125909255,5.94891047,2150.3,2149.3,9.30008]
[1625125909455,5.01,2150.4,2149.3,9.30008]
[1625125909553,5.65539763,2150.3,2149.3,9.30008]
[1625125909653,5.65539763,2150.3,2149.0,0.7875264]
[1625125909654,5.01,2150.1,2149.0,0.7875264]
[1625125909752,5.65539763,2150.3,2149.0,0.7875264]
[1625125909902,6.25134986,2150.3,2149.1,0.18]
[1625125910101,6.25134986,2150.3,2149.1,5.01]
[1625125910200,6.25134986,2150.3,2149.3,9.30008]
[1625125910301,5.01,2150.4,2149.3,9.30008]
[1625125910399,5.68602825,2150.3,2149.3,9.30008]
[1625125910502,5.68602825,2150.3,2149.4,0.08]
[1625125911003,5.01,2150.5,2149.4,0.08]
[1625125911203,5.01,2150.4,2149.5,6.97502]
[1625125911302,10.81603006,2150.4,2149.5,6.97502]
[1625125911402,5.01,2150.4,2149.6,0.06]
[1625125911702,5.63610017,2150.3,2149.7,0.08]
[1625125911905,5.01,2150.5,2149.5,6.97502]
[1625125912001,5.01,2150.4,2149.5,6.97502]
[1625125912145,10.70978112,2150.4,2149.5,6.97502]
[1625125912241,5.01,2150.4,2149.5,6.97502]
[1625125912445,6.00482756,2150.3,2149.5,6.97502]
[1625125912643,6.00482756,2150.3,2149.3,9.30008]
[1625125912747,6.00482756,2150.3,2148.9,9.30191]
[1625125912847,5.01,2150.1,2148.9,9.30191]
[1625125912947,6.70780532,2150.0,2148.9,9.30191]
[1625125913045,6.69770972,2150.0,2148.9,9.30191]
[1625125913347,0.14,2150.2,2148.9,9.30191]
[1625125913546,5.01,2150.1,2148.9,9.30191]
[1625125913746,6.40965613,2150.0,2148.9,9.30191]
[1625125914692,5.01,2150.1,2148.9,9.30191]
[1625125914791,5.64245847,2150.0,2148.9,9.30191]
[1625125914892,6.12681633,2150.2,2148.9,9.30191]
[1625125914994,5.01,2150.1,2149.0,0.18]
[1625125915095,6.97737,2150.1,2149.1,6.9765]
[1625125915196,5.98681633,2150.2,2149.1,6.9765]
[1625125915294,5.98681633,2150.2,2149.1,7.0765]
[1625125915396,5.79224989,2150.0,2149.1,7.0765]
[1625125915496,6.51785144,2150.4,2149.2,0.04]
[1625125915596,5.01,2150.2,2149.2,0.04]
[1625125915695,5.01,2150.2,2148.9,9.30191]
[1625125915795,6.11961518,2150.1,2148.9,9.30191]
[1625125916295,13.09669518,2150.1,2148.9,9.30191]
[1625125916494,5.72224165,2149.8,2148.9,9.30191]
[1625125916623,6.2679167,2150.0,2148.9,9.30191]
[1625125917019,6.2679167,2150.0,2149.0,0.16]
[1625125917221,5.01,2150.2,2149.0,0.16]
[1625125917319,5.68509441,2150.1,2149.0,0.16]
[1625125917575,5.68509441,2150.1,2149.2,6.97596]
[1625125917673,5.68509441,2150.1,2148.9,9.30191]
[1625125917770,5.01,2149.9,2148.9,9.30191]
[1625125917876,5.87642699,2149.8,2148.9,9.30191]
[1625125918370,6.19466437,2150.1,2148.9,9.30191]
[1625125918570,5.01,2149.9,2148.9,9.30191]
[1625125918863,5.75344093,2149.8,2148.9,9.30191]
[1625125918965,13.26291047,2150.2,2148.9,9.30191]
[1625125919064,13.26291047,2150.2,2149.0,0.12]
[1625125919167,13.26291047,2150.2,2149.0,4.1475]
[1625125919267,13.26291047,2150.2,2149.1,0.04]
[1625125919268,6.28631047,2150.2,2149.1,0.04]
[1625125919765,5.01,2150.3,2149.1,0.04]
[1625125919866,5.81588292,2150.2,2149.1,0.04]
[1625125920166,5.81588292,2150.2,2149.0,4.0275]
[1625125920414,5.01,2150.3,2149.3,6.9756]
[1625125920614,5.01,2150.4,2149.3,6.9756]
[1625125920912,5.01,2150.5,2149.3,6.9756]
[1625125921195,11.13432992,2150.4,2149.0,13.32879]
[1625125921298,6.12432992,2150.4,2149.0,13.32879]
[1625125921394,5.01,2150.2,2149.0,13.32879]
[1625125921495,11.98675,2150.2,2149.0,13.32879]
[1625125921698,5.01,2150.1,2149.0,13.32879]
[1625125921897,5.01,2150.1,2149.0,4.0275]
[1625125921997,5.01,2150.1,2148.7,9.99352894]
[1625125922296,5.01,2150.0,2148.7,9.99352894]
[1625125922496,5.01,2150.1,2148.7,3.4879]
[1625125922596,5.01,2150.1,2148.8,0.14]
[1625125922700,5.01,2150.0,2148.8,0.14]
[1625125922797,6.97735,2150.0,2148.8,13.4030574]
[1625125922999,5.01,2149.8,2148.8,13.4030574]
[1625125923355,5.01,2149.8,2148.8,6.97724]
[1625125923452,5.01,2149.8,2148.9,0.1]
[1625125923755,17.0,2149.7,2148.9,0.05]
[1625125923852,35.81961324,2149.6,2148.6,9.30275]
[1625125923960,0.29633418,2149.1,2148.2,16.27662]
[1625125924065,0.29633418,2149.1,2147.9,3.0]
[1625125924066,5.54623418,2149.1,2147.9,3.0]
[1625125924152,7.61549541,2149.0,2147.7,1.69687028]
[1625125924277,0.93,2148.6,2147.7,1.69687028]
[1625125924351,0.93,2148.6,2147.4,3.0]
[1625125924352,6.37204489,2148.5,2147.4,3.0]
[1625125924574,5.01,2148.3,2147.4,3.0]
[1625125924752,5.96773819,2148.2,2147.4,3.0]
[1625125924951,0.14,2148.1,2147.4,3.0]
[1625125925053,5.7789,2148.1,2147.4,3.0]
[1625125925154,5.7789,2148.1,2147.0,4.2943814]
[1625125925353,5.73427945,2148.0,2147.0,4.2943814]
[1625125925453,0.05187757,2147.9,2147.5,0.11142195]
[1625125925600,1.1471,2148.0,2147.5,0.11142195]
[1625125925800,6.8065541,2148.0,2147.5,0.11142195]
[1625125926105,11.99319,2147.8,2147.5,0.11142195]
[1625125926202,17.58659765,2147.8,2147.5,0.11142195]
[1625125926303,5.01,2147.7,2147.5,0.11142195]
[1625125926404,10.36,2147.6,2147.5,0.11142195]
[1625125926504,9.6106,2147.6,2147.5,0.11142195]
[1625125926805,4.6006,2147.6,2147.5,0.11142195]
[1625125927107,11.64453,2147.6,2147.5,0.11142195]
[1625125927307,32.59453,2147.6,2147.5,2.195e-05]
[1625125927407,5.01,2147.4,2147.0,4.2943814]
[1625125927512,6.2359528,2147.3,2147.0,4.2943814]
[1625125927709,0.1,2147.2,2147.0,4.2943814]
[1625125927876,26.56,2147.1,2147.0,4.2943814]
[1625125927962,9.3795,2147.1,2147.0,4.2943814]
[1625125928061,4.3695,2147.1,2147.0,4.2943814]
[1625125928564,0.23418657,2147.1,2147.0,4.2943814]
[1625125928769,10.43418657,2147.1,2147.0,4.2943814]
[1625125929768,32.20003657,2147.1,2147.0,4.2943814]
[1625125929866,37.9860826,2147.1,2147.0,4.2943814]
[1625125929966,38.0860826,2147.1,2147.0,4.2943814]
[1625125930312,38.2260826,2147.1,2147.0,4.2943814]
[1625125930415,25.7760826,2147.1,2147.0,4.2943814]
[1625125930719,15.5760826,2147.1,2147.0,4.2943814]
[1625125930812,9.79003657,2147.1,2147.0,4.2943814]
[1625125931015,15.63126857,2147.1,2147.0,4.2943814]
[1625125931314,15.63126857,2147.1,2146.4,0.12485446]
[1625125931415,5.01,2146.9,2146.4,0.12485446]
[1625125931616,5.97081458,2146.8,2146.4,0.12485446]
[1625125931813,5.01,2146.6,2146.4,0.12485446]
[1625125931915,8.5657,2146.6,2146.4,0.12485446]
[1625125932014,28.92616332,2146.5,2146.4,0.12485446]
[1625125932366,32.12616332,2146.5,2146.4,0.12485446]
[1625125932633,32.12616332,2146.5,2146.0,0.25]
[1625125932634,25.9,2146.4,2146.0,0.25]
[1625125932723,10.98457552,2146.3,2146.0,0.25]
[1625125932810,5.01,2146.2,2146.0,0.25]
[1625125932912,21.56,2146.1,2146.0,0.25]
[1625125933011,14.19287836,2146.1,2146.0,0.25]
[1625125933216,28.15,2146.0,2145.4,6.6]
[1625125933315,5.01,2145.8,2145.4,6.6]
[1625125933519,6.10025164,2145.7,2145.1,1.18317203]
[1625125933616,6.33085552,2145.7,2145.0,0.06]
[1625125933712,3.9,2145.1,2145.0,0.06]
[1625125933814,12.76450797,2145.1,2145.0,0.06]
[1625125933917,41.05450797,2145.1,2145.0,0.06]
[1625125934013,12.90450797,2145.1,2145.0,0.06]
[1625125934319,5.01,2144.9,2143.6,0.27033258]
[1625125934417,5.01,2144.9,2143.2,11.76337158]
[1625125934418,28.24010235,2144.8,2143.2,11.76337158]
[1625125934519,36.02131801,2144.8,2143.2,0.24604739]
[1625125934642,2.81325474,2144.7,2143.2,0.24604739]
[1625125934730,3.46,2144.1,2143.2,0.13520739]
[1625125934839,20.0,2143.4,2143.2,0.13520581]
[1625125934931,3.46,2143.3,2143.2,0.13520581]
[1625125935036,3.46,2143.3,2143.1,0.27041163]
[1625125935037,3.6,2143.3,2143.1,0.05794135]
[1625125935229,5.25,2143.2,2141.1,22.10614253]
[1625125935330,5.01,2143.1,2142.4,1.15205813]
[1625125935431,10.94030813,2143.1,2142.0,0.21315385]
[1625125935537,5.01,2143.0,2142.0,0.21315385]
[1625125935728,10.59816653,2142.9,2142.0,0.21315385]
[1625125935837,9.06306653,2142.9,2142.0,0.21315385]
[1625125935928,5.01,2142.7,2142.0,0.21315385]
[1625125936029,0.14,2142.6,2142.0,0.21315385]
[1625125936327,0.14,2142.6,2142.1,0.45]
[1625125937073,0.14,2142.6,2142.2,0.08]
[1625125937373,0.14,2142.6,2142.1,0.45]
[1625125937473,0.04741955,2142.9,2142.1,0.45]
[1625125937574,0.00846144,2143.1,2142.2,28.15]
[1625125937776,0.00846144,2143.1,2142.3,7.89385833]
[1625125937873,0.00846144,2143.1,2142.3,7.95385833]
[1625125938078,1.44e-06,2143.1,2142.5,5.01]
[1625125938177,1.44e-06,2143.1,2142.6,7.34129608]
[1625125938370,1.44e-06,2143.1,2142.8,5.01]
[1625125938471,1.44e-06,2143.1,2142.7,5.21]
[1625125938579,1.44e-06,2143.1,2142.7,0.2]
[1625125938774,0.14,2144.3,2142.2,28.15696548]
[1625125938871,0.14,2144.3,2142.2,41.80316548]
[1625125938971,0.14,2144.3,2142.3,0.06107827]
[1625125939218,0.14,2144.3,2142.3,6.85842653]
[1625125939518,0.14,2144.3,2142.3,0.06107827]
[1625125939716,6.19602239,2144.1,2142.2,48.79834548]
[1625125939814,6.19602239,2144.1,2142.4,5.01]
[1625125940014,0.14,2144.3,2142.4,5.01]
[1625125940115,0.3402,2143.1,2142.4,5.01]
[1625125940519,0.14,2144.0,2142.5,33.24]
[1625125941019,0.14,2144.0,2142.5,33.16]
[1625125941213,6.29388167,2144.0,2142.5,33.16]
[1625125941365,0.14,2144.0,2142.5,33.16]
[1625125941564,0.14,2144.0,2142.5,41.16]
[1625125941864,0.14,2144.0,2142.8,5.01]
[1625125942065,0.14,2144.0,2142.8,11.20478404]
[1625125942264,0.14,2144.0,2142.6,6.92145034]
[1625125942368,0.14,2144.0,2142.6,6.74574736]
[1625125942469,0.14,2144.0,2142.5,28.15]
[1625125942571,0.14,2144.0,2142.6,6.23601208]
[1625125942666,0.14,2144.0,2142.5,28.1]
[1625125942768,0.14,2144.0,2142.6,6.14254532]
[1625125943174,0.14,2144.0,2142.6,2.4969]
[1625125943472,0.14,2144.0,2142.7,6.10945329]
[1625125943726,0.14,2144.0,2142.8,1.7136]
[1625125943831,0.14,2144.0,2142.9,11.55515014]
[1625125943926,0.14,2144.0,2143.0,5.01]
[1625125944028,0.30675311,2144.6,2143.1,6.74215812]
[1625125944129,0.14,2144.5,2143.1,6.74215812]
[1625125944228,3.46716283,2145.1,2143.1,6.82215812]
[1625125944330,3.46716283,2145.1,2143.3,5.01]
[1625125944331,0.14,2144.5,2143.3,5.01]
[1625125944430,16.98765727,2145.0,2143.3,3.9986]
[1625125944531,0.14,2144.8,2143.3,3.9986]
[1625125944630,0.14,2144.8,2143.3,10.31029753]
[1625125944732,0.14,2144.8,2143.3,3.9986]
[1625125944829,0.14,2144.8,2143.3,10.24037565]
[1625125944932,0.14,2144.8,2143.3,10.45185371]
[1625125945028,0.14,2144.8,2143.3,3.9986]
[1625125945330,0.14,2144.8,2143.3,10.46107413]
[1625125945530,0.14,2144.8,2143.3,3.9986]
[1625125945631,0.14,2144.8,2143.2,0.8815]
[1625125945735,0.28931299,2144.7,2142.9,6.49894119]
[1625125945887,0.28931299,2144.7,2143.1,6.31097573]
[1625125945979,0.14,2144.6,2142.8,9.04140636]
[1625125946075,0.07173742,2145.1,2143.2,0.30935574]
[1625125946171,0.14716283,2145.1,2143.2,3.19775574]
[1625125946324,0.14716283,2145.1,2143.3,0.04109066]
[1625125946522,0.14716283,2145.1,2143.1,15.32987]
[1625125946523,0.00716283,2144.5,2143.1,12.99435247]
[1625125946620,0.00716283,2144.5,2143.1,12.98387]
[1625125947024,0.30290095,2144.3,2143.1,12.98387]
[1625125947640,0.30290095,2144.3,2143.1,3.659]
[1625125947743,0.14,2144.2,2143.1,3.659]
[1625125949419,0.14,2144.2,2143.2,0.00633654]
[1625125950477,5.15,2144.2,2143.2,0.00633654]
[1625125950581,0.29069435,2143.7,2143.2,0.01267308]
[1625125950676,4.45869435,2143.7,2143.2,0.01267308]
[1625125950788,5.81369435,2143.7,2143.2,0.01267308]
[1625125951476,5.523,2143.7,2143.2,0.01267308]
[1625125951979,23.40883924,2143.6,2143.2,0.01267308]
[1625125952481,5.01,2143.4,2143.2,0.01267308]
[1625125952648,5.01,2143.4,2141.6,25.11084]
[1625125952727,28.1,2143.3,2141.6,25.11084]
[1625125952829,0.06922226,2143.2,2141.6,25.11084]
[1625125952927,4.17772226,2143.2,2141.8,17.29921252]
[1625125953035,4.17772226,2143.2,2142.1,0.45]
[1625125953525,5.01,2143.0,2142.1,0.45]
[1625125953627,0.08174874,2142.9,2142.1,0.45]
[1625125953828,0.09814648,2143.0,2142.1,0.45]
[1625125954025,0.09814648,2143.0,2142.1,0.4]
[1625125954224,1.2101,2143.1,2142.1,7.3991]
[1625125954628,6.2201,2143.1,2142.1,7.3991]
[1625125954728,5.30385564,2143.1,2142.1,7.3991]
[1625125955476,14.6485715,2143.0,2142.1,7.3991]
[1625125956175,14.6485715,2143.0,2142.2,0.08]
[1625125956277,14.6485715,2143.0,2142.2,4.069]
[1625125956580,5.45735272,2142.9,2142.2,4.069]
[1625125956677,14.6485715,2143.0,2142.2,4.069]
[1625125956980,14.6485715,2143.0,2142.4,5.01]
[1625125957146,20.83440095,2144.3,2142.7,6.86839478]
[1625125957233,0.14716283,2144.5,2142.7,6.86839478]
[1625125957234,0.14716283,2144.5,2142.8,5.01]
[1625125957332,0.00716283,2144.5,2142.9,5.01]
[1625125957431,0.00716283,2144.5,2143.0,0.14038955]
[1625125957530,0.00716283,2144.5,2143.0,0.1480822]
[1625125957631,0.00716283,2144.5,2143.1,6.87177749]
[1625125957733,0.00716283,2144.5,2143.2,0.05760204]
[1625125957832,0.00716283,2144.5,2143.2,5.01550204]
[1625125958033,0.00716283,2144.5,2143.4,5.01]
[1625125958134,0.00716283,2144.5,2143.5,1.17136665]
[1625125958243,0.00716283,2144.5,2143.5,12.56411972]
[1625125958337,0.00716283,2144.5,2143.5,7.55411972]
[1625125958433,10.7201,2145.2,2143.7,5.01]
[1625125958538,10.7201,2145.2,2143.9,0.03525703]
[1625125958632,10.7201,2145.2,2143.8,0.04554469]
[1625125958731,10.7201,2145.2,2143.9,5.01]
[1625125958833,10.7201,2145.2,2144.0,0.00661087]
[1625125958933,10.7201,2145.2,2143.9,0.01799823]
[1625125959034,0.14,2145.4,2143.9,0.01799823]
[1625125959137,0.14,2145.4,2144.4,6.9929]
[1625125959243,0.14,2145.4,2144.4,11.5933]
[1625125959438,0.14,2145.4,2144.5,6.27271904]
[1625125959521,0.14,2145.4,2144.4,5.7995]
[1625125959719,0.14,2145.4,2144.4,12.1260226]
[1625125959820,0.14,2145.4,2144.4,4.6004]
[1625125960022,0.14,2145.4,2144.4,10.9672352]
[1625125960319,0.14,2145.9,2144.8,6.99176]
[1625125960423,7.28630002,2146.1,2144.8,6.99176]
[1625125960521,0.14,2145.9,2144.8,4.23131822]
[1625125962026,7.1324,2145.9,2144.5,9.32256]
[1625125962127,11.0162,2145.9,2144.5,9.32256]
[1625125962224,7.06940901,2145.8,2144.5,9.32256]
[1625125962503,0.14,2145.7,2144.5,9.32256]
[1625125963272,0.30020256,2145.5,2143.7,9.32504]
[1625125963372,0.30961035,2144.9,2143.7,9.32504]
[1625125963473,4.86351035,2144.9,2143.7,9.32504]
[1625125963570,5.74471072,2144.8,2143.7,9.32504]
[1625125963881,10.18271237,2144.9,2143.7,9.32504]
[1625125963977,10.18271237,2144.9,2143.8,0.06]
[1625125964077,10.18271237,2144.9,2143.7,9.32504]
[1625125964979,18.18271237,2144.9,2143.7,9.32504]
[1625125965179,5.01,2144.7,2143.7,9.32504]
[1625125965283,5.63575147,2144.6,2144.1,6.99414]
[1625125965385,5.78531084,2144.8,2144.1,6.99414]
[1625125965480,6.02397512,2145.2,2144.1,6.99414]
[1625125965585,0.14,2145.2,2144.1,6.99414]
[1625125965791,0.14,2145.2,2143.4,21.5964]
[1625125966119,0.14,2145.2,2143.5,0.06]
[1625125966323,0.1903326,2145.7,2143.6,5.01]
[1625125966423,0.1903326,2145.7,2144.5,6.99255]
[1625125966521,0.3303326,2145.7,2144.5,6.99255]
[1625125966621,5.01,2145.6,2144.5,6.99255]
[1625125966721,5.56992033,2145.5,2144.5,6.99255]
[1625125966821,5.70992033,2145.5,2144.5,6.99255]
[1625125968229,5.01,2145.3,2144.5,6.99255]
[1625125968407,5.987177,2145.2,2144.5,6.99255]
[1625125968507,5.937177,2145.2,2144.5,6.99255]
[1625125969014,5.63795572,2145.4,2144.5,6.99255]
[1625125969409,5.50714744,2145.1,2144.5,6.99255]
[1625125969508,5.01,2145.2,2144.5,6.99255]
[1625125969612,6.06661396,2145.5,2144.1,9.32238]
[1625125969712,0.14,2145.7,2143.6,8.5058]
[1625125969811,0.14,2145.7,2143.8,5.01]
[1625125969910,0.07539981,2145.6,2144.8,6.99149]
[1625125970012,0.00712387,2145.9,2144.8,6.99149]
[1625125970746,5.01712387,2145.9,2144.8,6.99149]
[1625125970848,0.00712387,2145.9,2144.8,6.99149]
[1625125970947,0.00712387,2145.9,2144.8,10.27479]
[1625125971099,0.00712387,2145.9,2145.0,5.01]
[1625125972600,0.00712387,2145.9,2145.4,6.98908]
[1625125972699,0.00712387,2145.9,2145.4,12.03408]
[1625125972971,0.00712387,2145.9,2145.5,0.04]
[1625125974175,0.00712387,2145.9,2145.6,6.9875]
[1625125977574,0.00712387,2145.9,2145.3,9.31877]
[1625125977932,6.65289835,2145.9,2145.3,9.31877]
[1625125978131,6.65289835,2145.9,2145.1,9.3178]
[1625125978237,5.01,2145.7,2145.1,9.3178]
[1625125978331,3.6729,2145.7,2145.1,9.3178]
[1625125978631,5.01,2145.5,2144.7,9.31984]
[1625125978834,26.39551874,2145.4,2144.3,11.64928]
[1625125978932,34.62410655,2145.4,2144.3,11.64928]
[1625125979034,5.01,2145.3,2144.3,11.64928]
[1625125979138,0.11179004,2145.2,2144.0,11.65088]
[1625125979283,0.13969437,2145.1,2144.0,11.65088]
[1625125979379,0.27969437,2145.1,2144.0,11.65088]
[1625125979830,5.01,2145.0,2144.0,11.65088]
[1625125979982,5.86783448,2144.9,2144.0,11.65088]
[1625125980081,6.00783448,2144.9,2144.0,11.65088]
[1625125980181,0.14,2144.9,2144.1,6.99328]
[1625125980684,0.14,2144.9,2144.1,6.89328]
[1625125982223,0.14,2144.9,2143.5,19.58593]
[1625125982323,5.12759094,2144.8,2143.2,20.2732]
[1625125982424,12.13009475,2144.8,2143.6,9.32537]
[1625125982526,0.29980286,2144.5,2143.1,11.65547]
[1625125982629,0.09824662,2144.4,2143.1,11.65547]